Workbook

Sheet Double bracket parabola
U1: 0 | X1: 0
F2: 0 | I2: y = | J2: =IF(M6=0,"","(") -> ( | K2: =IF(M6=0,"","x") -> x | L2: =IF(M6=0,"",IF(M6>0,"+","-")) -> + | M2: =IF(M6=0,"x",ABS(M6)) -> 5 | N2: =IF(M6=0,"(",")(") -> )( | O2: x | P2: =IF(Q6=0,"",IF(Q6>=0,"+","-")) -> + | Q2: =IF(Q6=0,"",ABS(Q6)) -> 7 | R2: ) | T2: Intercepts on / off | W2: Turning Pt on / off
B3: -10 | C3: =(B3+M$6)*(B3+Q$6) -> 15 | F3: =IF(F$2=1,"",B3^2) -> 100
B4: =B3+0.2 -> -9.8 | C4: 13.44 | D4: =IF(U1=1,20,-M6) -> -5 | E4: =IF(U1=1,20,0) -> 0 | F4: =IF(F$2=1,"",B4^2) -> 96.04 | H4: x | I4: y | M4: 9 | Q4: 9
B5: -9.6 | C5: 11.96 | D5: =IF(U1=1,20,-Q6) -> -7 | E5: =IF(U1=1,20,0) -> 0 | F5: 92.16 | H5: -8 | I5: =C13 -> 3 | M5: 4 | Q5: 2
B6: -9.4 | C6: 10.56 | D6: =IF(X1=1,20,-(M6+Q6)/2) -> -6 | E6: =IF(X1=1,20,(D6+M6)*(D6+Q6)) -> -1 | F6: 88.36 | H6: =H5+1 -> -7 | I6: =C18 -> 1.243449788e-14 | M6: =M4-M5 -> 5 | Q6: =Q4-Q5 -> 7
B7: -9.2 | C7: 9.24 | F7: 84.64 | H7: -6 | I7: =C23 -> -1
B8: -9 | C8: 8 | F8: 81 | H8: -5 | I8: =C28 -> -8.881784197e-15
B9: -8.8 | C9: 6.84 | F9: 77.44 | H9: -4 | I9: =C33 -> 3 | K9: ( | L9: =IF(U1=1,"",D4) -> -5 | M9: =IF(U1=1,"",E4) -> 0 | N9: )
B10: -8.6 | C10: 5.76 | F10: 73.96 | H10: -3 | I10: =C38 -> 8
B11: -8.4 | C11: 4.76 | F11: 70.56 | H11: -2 | I11: =C43 -> 15 | K11: ( | L11: =IF(U1=1,"",D5) -> -7 | M11: =IF(U1=1,"",E5) -> 0 | N11: )
B12: -8.2 | C12: 3.84 | F12: 67.24 | H12: -1 | I12: =C48 -> 24
B13: -8 | C13: 3 | F13: 64 | H13: 0 | I13: =(INT(100*C53))/100 -> 35 | S13: =IF(U1=1,20,M18) -> 35
B14: -7.8 | C14: 2.24 | F14: 60.84 | H14: 1 | I14: =C58 -> 48 | K14: ( | L14: =IF(X1=1,"",D6) -> -6 | O14: =IF(X1=1,"",E6) -> -1 | R14: ) | S14: =IF(U1=1,20,L18) -> 0
B15: -7.6 | C15: 1.56 | F15: 57.76 | H15: 2 | I15: =C63 -> 63
B16: -7.4 | C16: 0.96 | F16: 54.76 | H16: 3 | I16: =C68 -> 80
B17: -7.2 | C17: 0.44 | F17: 51.84 | H17: 4 | I17: =C73 -> 99
B18: -7 | C18: 1.243449788e-14 | F18: 49 | H18: 5 | I18: =C78 -> 120 | K18: ( | L18: =IF(U1=1,"",0) -> 0 | M18: =IF(U1=1,"",M6*Q6) -> 35 | O18: )
B19: -6.8 | C19: -0.36 | F19: 46.24 | H19: 6 | I19: =C83 -> 143
B20: -6.6 | C20: -0.64 | F20: 43.56 | H20: 7 | I20: =C88 -> 168
B21: -6.4 | C21: -0.84 | F21: 40.96 | H21: 8 | I21: =C93 -> 195
B22: -6.2 | C22: -0.96 | F22: 38.44
B23: -6 | C23: -1 | F23: 36 | M23: =I13-M18 -> 0
B24: -5.8 | C24: -0.96 | F24: 33.64
B25: -5.6 | C25: -0.84 | F25: 31.36
B26: -5.4 | C26: -0.64 | F26: 29.16
B27: -5.2 | C27: -0.36 | F27: 27.04
B28: -5 | C28: -8.881784197e-15 | F28: 25
B29: -4.8 | C29: 0.44 | F29: 23.04
B30: -4.6 | C30: 0.96 | F30: 21.16
B31: -4.4 | C31: 1.56 | F31: 19.36
B32: -4.2 | C32: 2.24 | F32: 17.64
B33: -4 | C33: 3 | F33: 16
B34: -3.8 | C34: 3.84 | F34: 14.44
B35: -3.6 | C35: =(B35+M$6)*(B35+Q$6) -> 4.76 | F35: 12.96
B36: =B35+0.2 -> -3.4 | C36: 5.76 | F36: 11.56
B37: -3.2 | C37: 6.84 | F37: 10.24
B38: -3 | C38: 8 | F38: 9
B39: -2.8 | C39: 9.24 | F39: 7.84
B40: -2.6 | C40: 10.56 | F40: 6.76
B41: -2.4 | C41: 11.96 | F41: 5.76
B42: -2.2 | C42: 13.44 | F42: 4.84
B43: -2 | C43: 15 | F43: 4
B44: -1.8 | C44: 16.64 | F44: 3.24
B45: -1.6 | C45: 18.36 | F45: 2.56
B46: -1.4 | C46: 20.16 | F46: 1.96
B47: -1.2 | C47: 22.04 | F47: 1.44
B48: -1 | C48: 24 | F48: 1
B49: -0.8 | C49: 26.04 | F49: 0.64
B50: -0.6 | C50: 28.16 | F50: 0.36
B51: -0.4 | C51: 30.36 | F51: 0.16
B52: -0.2 | C52: 32.64 | F52: 0.04
B53: -2.053912596e-15 | C53: 35 | F53: 4.21855695e-30
B54: 0.2 | C54: 37.44 | F54: 0.04
B55: 0.4 | C55: 39.96 | F55: 0.16
B56: 0.6 | C56: 42.56 | F56: 0.36
B57: 0.8 | C57: 45.24 | F57: 0.64
B58: 1 | C58: 48 | F58: 1
B59: 1.2 | C59: 50.84 | F59: 1.44
B60: 1.4 | C60: 53.76 | F60: 1.96
B61: 1.6 | C61: 56.76 | F61: 2.56
B62: 1.8 | C62: 59.84 | F62: 3.24
B63: 2 | C63: 63 | F63: 4
B64: 2.2 | C64: 66.24 | F64: 4.84
B65: 2.4 | C65: 69.56 | F65: 5.76
B66: 2.6 | C66: 72.96 | F66: 6.76
B67: 2.8 | C67: =(B67+M$6)*(B67+Q$6) -> 76.44 | F67: 7.84
B68: =B67+0.2 -> 3 | C68: 80 | F68: =IF(F$2=1,"",B68^2) -> 9
B69: 3.2 | C69: 83.64 | F69: 10.24
B70: 3.4 | C70: 87.36 | F70: 11.56
B71: 3.6 | C71: 91.16 | F71: 12.96
B72: 3.8 | C72: 95.04 | F72: 14.44
B73: 4 | C73: 99 | F73: 16
B74: 4.2 | C74: 103.04 | F74: 17.64
B75: 4.4 | C75: 107.16 | F75: 19.36
B76: 4.6 | C76: 111.36 | F76: 21.16
B77: 4.8 | C77: 115.64 | F77: 23.04
B78: 5 | C78: 120 | F78: 25
B79: 5.2 | C79: 124.44 | F79: 27.04
B80: 5.4 | C80: 128.96 | F80: 29.16
B81: 5.6 | C81: 133.56 | F81: 31.36
B82: 5.8 | C82: 138.24 | F82: 33.64
B83: 6 | C83: 143 | F83: 36
B84: 6.2 | C84: 147.84 | F84: 38.44
B85: 6.4 | C85: 152.76 | F85: 40.96
B86: 6.6 | C86: 157.76 | F86: 43.56
B87: 6.8 | C87: 162.84 | F87: 46.24
B88: 7 | C88: 168 | F88: 49
B89: 7.2 | C89: 173.24 | F89: 51.84
B90: 7.4 | C90: 178.56 | F90: 54.76
B91: 7.6 | C91: 183.96 | F91: 57.76
B92: 7.8 | C92: 189.44 | F92: 60.84
B93: 8 | C93: 195 | F93: 64
B94: 8.2 | C94: 200.64 | F94: 67.24
B95: 8.4 | C95: 206.36 | F95: 70.56
B96: 8.6 | C96: 212.16 | F96: 73.96
B97: 8.8 | C97: 218.04 | F97: 77.44
B98: 9 | C98: 224 | F98: 81
B99: 9.2 | C99: =(B99+M$6)*(B99+Q$6) -> 230.04 | F99: 84.64
B100: 9.4 | C100: =(B100+M$6)*(B100+Q$6) -> 236.16 | F100: 88.36
B101: 9.6 | C101: =(B101+M$6)*(B101+Q$6) -> 242.36 | F101: 92.16
B102: 9.8 | C102: =(B102+M$6)*(B102+Q$6) -> 248.64 | F102: 96.04
B103: 10 | C103: =(B103+M$6)*(B103+Q$6) -> 255 | F103: 100

Sheet Parabola translation
U1: 0 | X1: 0
F2: 0 | I2: =IF(K6=1,"",IF(K6=-1,"","y =")) ->  | J2: =IF(K6=1,"y = ",IF(K6=-1,"y = -",K6)) -> y = | L2: ( | M2: x | N2: =IF(M6=0,"",IF(M6>=0,"+","-")) -> - | O2: =IF(M6=0,"",ABS(M6)) -> 1 | P2: ) | Q2: =IF(P6=0,"",IF(P6>=0,"+","-")) -> + | R2: =IF(P6=0,"",ABS(P6)) -> 2 | T2: Intercepts on / off | W2: Turning Pt on / off
B3: -10 | C3: =(INT(1000*(K$6*(B3+M$6)^2+P$6))/1000) -> 123 | F3: =IF(F$2=1,"",B3^2) -> 100
B4: =B3+0.2 -> -9.8 | C4: =(INT(1000*(K$6*(B4+M$6)^2+P$6))/1000) -> 118.64 | D4: =IF(U1=1,20,IF(P6*K6>0,20,(-P6/K6)^0.5-M6)) -> 20 | E4: =IF(U1=1,"",0) -> 0 | F4: =IF(F$2=1,"",B4^2) -> 96.04 | H4: x | I4: y | K4: 100 | M4: 9 | P4: 9
B5: =B4+0.2 -> -9.6 | C5: 114.36 | D5: =IF(U1=1,20,IF(P6*K6>0,20,-1*(-P6/K6)^0.5-M6)) -> 20 | E5: =IF(U1=1,"",0) -> 0 | F5: 92.16 | H5: -8 | I5: =C13 -> 83 | K5: 90 | M5: 10 | P5: 7
B6: -9.4 | C6: 110.16 | D6: =IF(X1=1,20,-M6) -> 1 | E6: =IF(X1=1,20,P6) -> 2 | F6: 88.36 | H6: =H5+1 -> -7 | I6: =C18 -> 66 | K6: =(K4-K5)/10 -> 1 | M6: =M4-M5 -> -1 | P6: =P4-P5 -> 2
B7: -9.2 | C7: 106.04 | F7: 84.64 | H7: =H6+1 -> -6 | I7: =C23 -> 51
B8: -9 | C8: 102 | F8: 81 | H8: -5 | I8: =C28 -> 38
B9: -8.8 | C9: 98.04 | F9: 77.44 | H9: -4 | I9: =C33 -> 27 | J9: ( | K9: =IF(U1=1,"",IF(D4=20,"",D4)) ->  | M9: , | N9: =IF(U1=1,"",E4) -> 0 | O9: )
B10: -8.6 | C10: 94.16 | F10: 73.96 | H10: -3 | I10: =C38 -> 18
B11: -8.4 | C11: 90.36 | F11: 70.56 | H11: -2 | I11: =C43 -> 11 | J11: ( | K11: =IF(U1=1,"",IF(D5=20,"",D5)) ->  | M11: , | N11: =IF(U1=1,"",E5) -> 0 | O11: )
B12: -8.2 | C12: 86.64 | F12: 67.24 | H12: -1 | I12: =C48 -> 6
B13: -8 | C13: 83 | F13: 64 | H13: 0 | I13: =C53 -> 3 | S13: =IF(U1=1,20,K6*M6^2+P6) -> 3
B14: -7.8 | C14: 79.44 | F14: 60.84 | H14: 1 | I14: =C58 -> 2 | J14: ( | K14: =IF(X1=1,"",D6) -> 1 | M14: =IF(X1=1,"",E6) -> 2 | P14: ) | S14: =IF(U1=1,20,K18) -> 0
B15: -7.6 | C15: 75.96 | F15: 57.76 | H15: 2 | I15: =C63 -> 3
B16: -7.4 | C16: 72.56 | F16: 54.76 | H16: 3 | I16: =C68 -> 5.999
B17: -7.2 | C17: 69.24 | F17: 51.84 | H17: 4 | I17: =C73 -> 11
B18: -7 | C18: 66 | F18: 49 | H18: 5 | I18: =C78 -> 18 | J18: ( | K18: =IF(U1=1,"",0) -> 0 | M18: =IF(U1=1,"",S13) -> 3 | P18: )
B19: -6.8 | C19: 62.84 | F19: 46.24 | H19: 6 | I19: =C83 -> 27
B20: -6.6 | C20: 59.76 | F20: 43.56 | H20: 7 | I20: =C88 -> 38
B21: -6.4 | C21: 56.76 | F21: 40.96 | H21: =H20+1 -> 8 | I21: =C93 -> 51
B22: -6.2 | C22: 53.84 | F22: 38.44
B23: -6 | C23: 51 | F23: 36
B24: -5.8 | C24: 48.24 | F24: 33.64
B25: -5.6 | C25: 45.56 | F25: 31.36
B26: -5.4 | C26: 42.96 | F26: 29.16
B27: -5.2 | C27: 40.44 | F27: 27.04
B28: -5 | C28: 38 | F28: 25
B29: -4.8 | C29: 35.64 | F29: 23.04
B30: -4.6 | C30: 33.36 | F30: 21.16
B31: -4.4 | C31: 31.16 | F31: 19.36
B32: -4.2 | C32: 29.04 | F32: 17.64
B33: -4 | C33: 27 | F33: 16
B34: -3.8 | C34: 25.04 | F34: 14.44
B35: -3.6 | C35: 23.16 | F35: 12.96
B36: -3.4 | C36: 21.36 | F36: 11.56
B37: -3.2 | C37: 19.64 | F37: 10.24
B38: -3 | C38: 18 | F38: 9
B39: -2.8 | C39: 16.44 | F39: 7.84
B40: -2.6 | C40: 14.96 | F40: 6.76
B41: -2.4 | C41: 13.56 | F41: 5.76
B42: -2.2 | C42: 12.24 | F42: 4.84
B43: -2 | C43: 11 | F43: 4
B44: -1.8 | C44: 9.84 | F44: 3.24
B45: -1.6 | C45: 8.76 | F45: 2.56
B46: -1.4 | C46: 7.76 | F46: 1.96
B47: -1.2 | C47: 6.84 | F47: 1.44
B48: -1 | C48: 6 | F48: 1
B49: -0.8 | C49: 5.24 | F49: 0.64
B50: -0.6 | C50: 4.56 | F50: 0.36
B51: -0.4 | C51: 3.96 | F51: 0.16
B52: -0.2 | C52: 3.44 | F52: 0.04
B53: -2.053912596e-15 | C53: 3 | F53: 4.21855695e-30
B54: 0.2 | C54: 2.64 | F54: 0.04
B55: 0.4 | C55: 2.36 | F55: 0.16
B56: 0.6 | C56: 2.16 | F56: 0.36
B57: 0.8 | C57: 2.04 | F57: 0.64
B58: 1 | C58: 2 | F58: 1
B59: 1.2 | C59: 2.04 | F59: 1.44
B60: 1.4 | C60: 2.16 | F60: 1.96
B61: 1.6 | C61: 2.36 | F61: 2.56
B62: 1.8 | C62: 2.64 | F62: 3.24
B63: 2 | C63: 3 | F63: 4
B64: 2.2 | C64: 3.439 | F64: 4.84
B65: 2.4 | C65: 3.959 | F65: 5.76
B66: 2.6 | C66: 4.56 | F66: 6.76
B67: 2.8 | C67: 5.239 | F67: 7.84
B68: 3 | C68: =(INT(1000*(K$6*(B68+M$6)^2+P$6))/1000) -> 5.999 | F68: =IF(F$2=1,"",B68^2) -> 9
B69: =B68+0.2 -> 3.2 | C69: 6.839 | F69: 10.24
B70: 3.4 | C70: 7.76 | F70: 11.56
B71: 3.6 | C71: 8.76 | F71: 12.96
B72: 3.8 | C72: 9.84 | F72: 14.44
B73: 4 | C73: 11 | F73: 16
B74: 4.2 | C74: 12.24 | F74: 17.64
B75: 4.4 | C75: 13.56 | F75: 19.36
B76: 4.6 | C76: 14.96 | F76: 21.16
B77: 4.8 | C77: 16.44 | F77: 23.04
B78: 5 | C78: 18 | F78: 25
B79: 5.2 | C79: 19.64 | F79: 27.04
B80: 5.4 | C80: 21.36 | F80: 29.16
B81: 5.6 | C81: 23.16 | F81: 31.36
B82: 5.8 | C82: 25.04 | F82: 33.64
B83: 6 | C83: 27 | F83: 36
B84: 6.2 | C84: 29.04 | F84: 38.44
B85: 6.4 | C85: 31.16 | F85: 40.96
B86: 6.6 | C86: 33.36 | F86: 43.56
B87: 6.8 | C87: 35.64 | F87: 46.24
B88: 7 | C88: 38 | F88: 49
B89: 7.2 | C89: 40.44 | F89: 51.84
B90: 7.4 | C90: 42.96 | F90: 54.76
B91: 7.6 | C91: 45.56 | F91: 57.76
B92: 7.8 | C92: 48.24 | F92: 60.84
B93: 8 | C93: 51 | F93: 64
B94: 8.2 | C94: 53.84 | F94: 67.24
B95: 8.4 | C95: 56.76 | F95: 70.56
B96: 8.6 | C96: 59.76 | F96: 73.96
B97: 8.8 | C97: 62.84 | F97: 77.44
B98: 9 | C98: 66 | F98: 81
B99: 9.2 | C99: 69.24 | F99: 84.64
B100: 9.4 | C100: 72.559 | F100: 88.36
B101: 9.6 | C101: 75.959 | F101: 92.16
B102: 9.8 | C102: 79.439 | F102: 96.04
B103: 10 | C103: 82.999 | F103: 100
